[Event "Titled Tuesday Blitz October 19 2021"]
[White "Moroni, Luca Jr"]
[Black "Shkapenko, Pavel"]
[WhiteFideId "865834"]
[BlackFideId "4151933"]
[WhiteElo "2491"]
[BlackElo "2386"]
[Result "1-0"]
[Round "11"]
[TimeControl "180+1"]
[Date "2021.10.19"]
[WhiteClock "0:00:07"]
[BlackClock "0:00:12"]

1. d4 {[%clk 0:03:00]}  Nf6 {[%clk 0:02:56]} 2. g4 {[%clk 0:03:00]}  Nxg4 {[%clk 0:02:51]} 3. e4 {[%clk 0:03:00]}  Nf6 {[%clk 0:02:52]} 4. e5 {[%clk 0:03:00]}  Nd5 {[%clk 0:02:51]} 5. c4 {[%clk 0:02:59]}  Nb6 {[%clk 0:02:51]} 6. Nc3 {[%clk 0:02:59]}  d6 {[%clk 0:02:51]} 7. f4 {[%clk 0:02:59]}  Bf5 {[%clk 0:02:44]} 8. Nf3 {[%clk 0:02:58]}  e6 {[%clk 0:02:42]} 9. Bd3 {[%clk 0:02:53]}  Bxd3 {[%clk 0:02:37]} 10. Qxd3 {[%clk 0:02:54]}  Nc6 {[%clk 0:02:36]} 11. Be3 {[%clk 0:02:48]}  d5 {[%clk 0:02:33]} 12. c5 {[%clk 0:02:44]}  Nc4 {[%clk 0:02:16]} 13. Bc1 {[%clk 0:02:43]}  f5 {[%clk 0:02:17]} 14. b3 {[%clk 0:02:41]}  N4a5 {[%clk 0:02:16]} 15. Bd2 {[%clk 0:02:30]}  Be7 {[%clk 0:02:15]} 16. Ne2 {[%clk 0:02:26]}  Qd7 {[%clk 0:02:11]} 17. Rg1 {[%clk 0:02:18]}  g6 {[%clk 0:02:00]} 18. Rc1 {[%clk 0:02:17]}  a6 {[%clk 0:01:51]} 19. Nc3 {[%clk 0:02:12]}  b6 {[%clk 0:01:40]} 20. cxb6 {[%clk 0:02:09]}  cxb6 {[%clk 0:01:41]} 21. Na4 {[%clk 0:02:09]}  Rb8 {[%clk 0:01:39]} 22. Qxa6 {[%clk 0:02:06]}  Qb7 {[%clk 0:01:35]} 23. Qb5 {[%clk 0:02:01]}  O-O {[%clk 0:01:32]} 24. h4 {[%clk 0:02:00]}  Rfc8 {[%clk 0:01:21]} 25. h5 {[%clk 0:02:00]}  Na7 {[%clk 0:01:21]} 26. Qe2 {[%clk 0:01:53]}  Rxc1+ {[%clk 0:01:21]} 27. Bxc1 {[%clk 0:01:53]}  Bb4+ {[%clk 0:01:20]} 28. Kf2 {[%clk 0:01:50]}  Kh8 {[%clk 0:01:08]} 29. hxg6 {[%clk 0:01:49]}  Rg8 {[%clk 0:01:08]} 30. Ng5 {[%clk 0:01:39]}  Rxg6 {[%clk 0:01:08]} 31. Rh1 {[%clk 0:01:38]}  h6 {[%clk 0:01:04]} 32. Qh5 {[%clk 0:01:31]}  Qg7 {[%clk 0:01:01]} 33. Nxb6 {[%clk 0:01:18]}  Kg8 {[%clk 0:01:00]} 34. Nf3 {[%clk 0:01:18]}  N7c6 {[%clk 0:00:48]} 35. Be3 {[%clk 0:01:06]}  Rg2+ {[%clk 0:00:36]} 36. Kf1 {[%clk 0:01:06]}  Rg3 {[%clk 0:00:37]} 37. Qe8+ {[%clk 0:01:05]}  Bf8 {[%clk 0:00:28]} 38. Qxe6+ {[%clk 0:01:03]}  Kh8 {[%clk 0:00:28]} 39. Ke2 {[%clk 0:00:50]}  Rg2+ {[%clk 0:00:27]} 40. Bf2 {[%clk 0:00:49]}  Qg3 {[%clk 0:00:25]} 41. Rxh6+ {[%clk 0:00:42]}  Bxh6 {[%clk 0:00:24]} 42. Qxh6+ {[%clk 0:00:43]}  Kg8 {[%clk 0:00:24]} 43. Qg5+ {[%clk 0:00:37]}  Qxg5 {[%clk 0:00:24]} 44. fxg5 {[%clk 0:00:37]}  Ne7 {[%clk 0:00:19]} 45. b4 {[%clk 0:00:31]}  Nac6 {[%clk 0:00:19]} 46. b5 {[%clk 0:00:32]}  Nb4 {[%clk 0:00:19]} 47. a4 {[%clk 0:00:31]}  Nd3 {[%clk 0:00:18]} 48. Kxd3 {[%clk 0:00:30]}  Rxf2 {[%clk 0:00:18]} 49. Nd2 {[%clk 0:00:30]}  Rg2 {[%clk 0:00:16]} 50. a5 {[%clk 0:00:29]}  Rg3+ {[%clk 0:00:17]} 51. Kc2 {[%clk 0:00:29]}  f4 {[%clk 0:00:16]} 52. a6 {[%clk 0:00:29]}  Ra3 {[%clk 0:00:16]} 53. Nd7 {[%clk 0:00:18]}  f3 {[%clk 0:00:14]} 54. Nxf3 {[%clk 0:00:17]}  Rxf3 {[%clk 0:00:14]} 55. a7 {[%clk 0:00:14]}  Ra3 {[%clk 0:00:14]} 56. b6 {[%clk 0:00:15]}  Nc6 {[%clk 0:00:14]} 57. Nf6+ {[%clk 0:00:14]}  Kf7 {[%clk 0:00:14]} 58. Nxd5 {[%clk 0:00:15]}  Nxa7 {[%clk 0:00:13]} 59. bxa7 {[%clk 0:00:15]}  Rxa7 {[%clk 0:00:13]} 60. Kd3 {[%clk 0:00:15]}  Kg6 {[%clk 0:00:13]} 61. Ke4 {[%clk 0:00:15]}  Kxg5 {[%clk 0:00:13]} 62. Ne3 {[%clk 0:00:14]}  Rh7 {[%clk 0:00:13]} 63. Kd5 {[%clk 0:00:12]}  Rh3 {[%clk 0:00:12]} 64. Nc4 {[%clk 0:00:12]}  Kf5 {[%clk 0:00:12]} 65. Nd6+ {[%clk 0:00:11]}  Kg6 {[%clk 0:00:12]} 66. Kc6 {[%clk 0:00:10]}  Re3 {[%clk 0:00:12]} 67. Kd7 {[%clk 0:00:09]}  Rd3 {[%clk 0:00:12]} 68. e6 {[%clk 0:00:07]}  Kf6 {[%clk 0:00:10]} 69. e7 {[%clk 0:00:07]}  Re3 {[%clk 0:00:11]} 70. e8=Q {[%clk 0:00:05]}  Rxe8 {[%clk 0:00:11]} 71. Nxe8+ {[%clk 0:00:06]}  Kf5 {[%clk 0:00:12]} 72. d5 {[%clk 0:00:06]}  Ke5 {[%clk 0:00:12]} 73. d6 {[%clk 0:00:07]} 1-0


[Site "https://www.chess.com"]

[Event "Titled Tuesday Blitz October 19 2021"]
[White "Nagy, Gabor"]
[Black "Yaksin, Oleg"]
[WhiteFideId "737119"]
[BlackFideId "24105880"]
[WhiteElo "2534"]
[BlackElo "2256"]
[Result "1-0"]
[Round "11"]
[TimeControl "180+1"]
[Date "2021.10.19"]
[WhiteClock "0:00:15"]
[BlackClock "0:00:07"]

1. e4 {[%clk 0:03:00]}  c5 {[%clk 0:02:59]} 2. Nf3 {[%clk 0:02:59]}  d6 {[%clk 0:03:00]} 3. Nc3 {[%clk 0:02:59]}  Nc6 {[%clk 0:02:59]} 4. d4 {[%clk 0:02:59]}  cxd4 {[%clk 0:02:59]} 5. Nxd4 {[%clk 0:03:00]}  Nf6 {[%clk 0:02:59]} 6. Bc4 {[%clk 0:03:01]}  Qb6 {[%clk 0:02:59]} 7. Ndb5 {[%clk 0:03:01]}  a6 {[%clk 0:02:42]} 8. Be3 {[%clk 0:02:59]}  Qa5 {[%clk 0:02:30]} 9. Nd4 {[%clk 0:02:57]}  e6 {[%clk 0:02:22]} 10. O-O {[%clk 0:02:56]}  Be7 {[%clk 0:02:22]} 11. Bb3 {[%clk 0:02:56]}  O-O {[%clk 0:02:18]} 12. f4 {[%clk 0:02:56]}  Nxd4 {[%clk 0:02:05]} 13. Bxd4 {[%clk 0:02:57]}  e5 {[%clk 0:01:57]} 14. Be3 {[%clk 0:02:55]}  Ng4 {[%clk 0:01:50]} 15. Qf3 {[%clk 0:02:46]}  Nxe3 {[%clk 0:01:43]} 16. Qxe3 {[%clk 0:02:47]}  exf4 {[%clk 0:01:44]} 17. Rxf4 {[%clk 0:02:41]}  Bg5 {[%clk 0:01:25]} 18. Nd5 {[%clk 0:02:39]}  Be6 {[%clk 0:01:21]} 19. Raf1 {[%clk 0:02:33]}  Bxf4 {[%clk 0:01:18]} 20. Qxf4 {[%clk 0:02:34]}  Kh8 {[%clk 0:01:13]} 21. Qxd6 {[%clk 0:02:30]}  Rac8 {[%clk 0:01:05]} 22. Kh1 {[%clk 0:02:27]}  Qc5 {[%clk 0:01:03]} 23. Qg3 {[%clk 0:02:20]}  a5 {[%clk 0:00:58]} 24. a4 {[%clk 0:02:12]}  b5 {[%clk 0:00:54]} 25. axb5 {[%clk 0:02:09]}  Qxb5 {[%clk 0:00:54]} 26. Qf2 {[%clk 0:02:04]}  a4 {[%clk 0:00:51]} 27. Nc3 {[%clk 0:01:59]}  Qb4 {[%clk 0:00:46]} 28. Nxa4 {[%clk 0:01:49]}  Bxb3 {[%clk 0:00:45]} 29. cxb3 {[%clk 0:01:50]}  Qxb3 {[%clk 0:00:45]} 30. Nc3 {[%clk 0:01:48]}  Rb8 {[%clk 0:00:43]} 31. Nd5 {[%clk 0:01:39]}  Qxb2 {[%clk 0:00:42]} 32. Qg3 {[%clk 0:01:39]}  Rbe8 {[%clk 0:00:39]} 33. Re1 {[%clk 0:01:31]}  Qe5 {[%clk 0:00:29]} 34. Qf2 {[%clk 0:01:27]}  f5 {[%clk 0:00:27]} 35. Nb6 {[%clk 0:01:17]}  fxe4 {[%clk 0:00:25]} 36. Qg1 {[%clk 0:01:17]}  Qc3 {[%clk 0:00:15]} 37. h3 {[%clk 0:01:15]}  Rf7 {[%clk 0:00:12]} 38. Nd5 {[%clk 0:01:15]}  Qe5 {[%clk 0:00:12]} 39. Ne3 {[%clk 0:01:15]}  Ref8 {[%clk 0:00:11]} 40. Ng4 {[%clk 0:01:15]}  Qf4 {[%clk 0:00:11]} 41. Ne3 {[%clk 0:01:14]}  h6 {[%clk 0:00:11]} 42. Nd5 {[%clk 0:01:12]}  Qe5 {[%clk 0:00:12]} 43. Ne3 {[%clk 0:01:13]}  Rd7 {[%clk 0:00:12]} 44. Ng4 {[%clk 0:01:13]}  Qf4 {[%clk 0:00:11]} 45. Qc5 {[%clk 0:01:13]}  Rd3 {[%clk 0:00:11]} 46. Ne5 {[%clk 0:01:09]}  Rf6 {[%clk 0:00:06]} 47. Nxd3 {[%clk 0:00:59]}  exd3 {[%clk 0:00:07]} 48. Qd5 {[%clk 0:01:00]}  Rd6 {[%clk 0:00:05]} 49. Re8+ {[%clk 0:00:57]}  Kh7 {[%clk 0:00:05]} 50. Qg8+ {[%clk 0:00:58]}  Kg6 {[%clk 0:00:06]} 51. Re7 {[%clk 0:00:49]}  Qf1+ {[%clk 0:00:05]} 52. Kh2 {[%clk 0:00:49]}  Qf4+ {[%clk 0:00:06]} 53. Kh1 {[%clk 0:00:49]}  Qf6 {[%clk 0:00:06]} 54. Re1 {[%clk 0:00:34]}  d2 {[%clk 0:00:07]} 55. Rd1 {[%clk 0:00:34]}  Qe5 {[%clk 0:00:07]} 56. Qb3 {[%clk 0:00:31]}  Qe4 {[%clk 0:00:07]} 57. Qg3+ {[%clk 0:00:30]}  Kf5 {[%clk 0:00:06]} 58. Rf1+ {[%clk 0:00:22]}  Ke6 {[%clk 0:00:05]} 59. Qxg7 {[%clk 0:00:21]}  d1=Q {[%clk 0:00:05]} 60. Qxh6+ {[%clk 0:00:14]}  Kd7 {[%clk 0:00:06]} 61. Qg7+ {[%clk 0:00:13]}  Kc6 {[%clk 0:00:06]} 62. Qc3+ {[%clk 0:00:14]}  Kd7 {[%clk 0:00:05]} 63. Qg7+ {[%clk 0:00:13]}  Qe7 {[%clk 0:00:06]} 64. Qg4+ {[%clk 0:00:11]}  Qe6 {[%clk 0:00:06]} 65. Rxd1 {[%clk 0:00:10]}  Rxd1+ {[%clk 0:00:04]} 66. Qxd1+ {[%clk 0:00:10]}  Ke7 {[%clk 0:00:04]} 67. Qf1 {[%clk 0:00:11]}  Qe5 {[%clk 0:00:04]} 68. Qf3 {[%clk 0:00:11]}  Ke6 {[%clk 0:00:05]} 69. Qf2 {[%clk 0:00:11]}  Qa1+ {[%clk 0:00:05]} 70. Kh2 {[%clk 0:00:11]}  Qe5+ {[%clk 0:00:05]} 71. Qg3 {[%clk 0:00:12]}  Qa1 {[%clk 0:00:06]} 72. Qg4+ {[%clk 0:00:12]}  Kf6 {[%clk 0:00:06]} 73. h4 {[%clk 0:00:13]}  Kf7 {[%clk 0:00:06]} 74. Kh3 {[%clk 0:00:13]}  Qc3+ {[%clk 0:00:06]} 75. Qf3+ {[%clk 0:00:13]}  Qxf3+ {[%clk 0:00:06]} 76. gxf3 {[%clk 0:00:14]}  Kg6 {[%clk 0:00:07]} 77. Kg4 {[%clk 0:00:15]} 1-0


[Site "https://www.chess.com"]

[Event "Titled Tuesday Blitz October 19 2021"]
[White "Nakamura, Hikaru"]
[Black "Yilmaz, Mustafa"]
[WhiteFideId "2016192"]
[BlackFideId "6302718"]
[WhiteElo "2884"]
[BlackElo "2518"]
[Result "1-0"]
[Round "11"]
[TimeControl "180+1"]
[Date "2021.10.19"]
[WhiteClock "0:00:14"]
[BlackClock "0:00:04"]

1. Nf3 {[%clk 0:03:00]}  d5 {[%clk 0:02:58]} 2. e3 {[%clk 0:03:00]}  Nf6 {[%clk 0:02:58]} 3. c4 {[%clk 0:03:00]}  e6 {[%clk 0:02:58]} 4. b3 {[%clk 0:03:01]}  b6 {[%clk 0:02:56]} 5. Bb2 {[%clk 0:03:00]}  Bb7 {[%clk 0:02:56]} 6. cxd5 {[%clk 0:02:58]}  exd5 {[%clk 0:02:55]} 7. d4 {[%clk 0:02:58]}  Bd6 {[%clk 0:02:53]} 8. Nc3 {[%clk 0:02:51]}  Nbd7 {[%clk 0:02:50]} 9. Rc1 {[%clk 0:02:50]}  a6 {[%clk 0:02:46]} 10. g3 {[%clk 0:02:50]}  Qe7 {[%clk 0:02:45]} 11. Bg2 {[%clk 0:02:50]}  O-O-O {[%clk 0:02:44]} 12. O-O {[%clk 0:02:46]}  h5 {[%clk 0:02:40]} 13. h4 {[%clk 0:02:39]}  Ne4 {[%clk 0:02:36]} 14. Qc2 {[%clk 0:02:38]}  Kb8 {[%clk 0:02:34]} 15. Nxe4 {[%clk 0:02:35]}  dxe4 {[%clk 0:02:34]} 16. Ng5 {[%clk 0:02:35]}  Rhe8 {[%clk 0:02:28]} 17. Qe2 {[%clk 0:02:09]}  g6 {[%clk 0:02:08]} 18. d5 {[%clk 0:02:03]}  Nc5 {[%clk 0:02:04]} 19. Rfd1 {[%clk 0:01:59]}  Nd3 {[%clk 0:01:57]} 20. Rc4 {[%clk 0:01:51]}  Bxd5 {[%clk 0:01:35]} 21. Rxe4 {[%clk 0:01:14]}  Bxe4 {[%clk 0:01:34]} 22. Nxe4 {[%clk 0:01:06]}  Nxb2 {[%clk 0:01:30]} 23. Qxa6 {[%clk 0:00:56]}  c6 {[%clk 0:00:32]} 24. Qxb6+ {[%clk 0:00:34]}  Qb7 {[%clk 0:00:30]} 25. Qxb7+ {[%clk 0:00:34]}  Kxb7 {[%clk 0:00:31]} 26. Nxd6+ {[%clk 0:00:35]}  Kb8 {[%clk 0:00:27]} 27. Rd4 {[%clk 0:00:34]}  c5 {[%clk 0:00:21]} 28. Rd5 {[%clk 0:00:31]}  Re6 {[%clk 0:00:21]} 29. Nxf7 {[%clk 0:00:30]}  Rxd5 {[%clk 0:00:22]} 30. Bxd5 {[%clk 0:00:30]}  Ra6 {[%clk 0:00:21]} 31. a4 {[%clk 0:00:27]}  Kc7 {[%clk 0:00:21]} 32. e4 {[%clk 0:00:21]}  c4 {[%clk 0:00:17]} 33. bxc4 {[%clk 0:00:19]}  Rxa4 {[%clk 0:00:17]} 34. Ne5 {[%clk 0:00:19]}  Kd6 {[%clk 0:00:13]} 35. Nxg6 {[%clk 0:00:19]}  Nd3 {[%clk 0:00:14]} 36. Nf4 {[%clk 0:00:16]}  Ra1+ {[%clk 0:00:04]} 37. Kg2 {[%clk 0:00:16]}  Ne1+ {[%clk 0:00:04]} 38. Kh3 {[%clk 0:00:17]}  Nf3 {[%clk 0:00:04]} 39. Nxh5 {[%clk 0:00:15]}  Ke5 {[%clk 0:00:04]} 40. Nf4 {[%clk 0:00:14]}  Ra2 {[%clk 0:00:03]} 41. Kg4 {[%clk 0:00:12]}  Nh2+ {[%clk 0:00:03]} 42. Kg5 {[%clk 0:00:12]}  Nf3+ {[%clk 0:00:03]} 43. Kg6 {[%clk 0:00:13]}  Kd6 {[%clk 0:00:03]} 44. c5+ {[%clk 0:00:13]}  Kxc5 {[%clk 0:00:04]} 45. Bxa2 {[%clk 0:00:14]} 1-0


[Site "https://www.chess.com"]

[Event "Titled Tuesday Blitz October 19 2021"]
[White "Sanal, Vahap"]
[Black "Jobava, Baadur"]
[WhiteFideId "6300545"]
[BlackFideId "13601520"]
[WhiteElo "2492"]
[BlackElo "2731"]
[Result "1-0"]
[Round "11"]
[TimeControl "180+1"]
[Date "2021.10.19"]
[WhiteClock "0:01:08"]
[BlackClock "0:00:35"]

1. e4 {[%clk 0:02:58]}  e6 {[%clk 0:02:59]} 2. d4 {[%clk 0:02:57]}  d5 {[%clk 0:03:00]} 3. Nc3 {[%clk 0:02:57]}  dxe4 {[%clk 0:03:00]} 4. Nxe4 {[%clk 0:02:58]}  Bd7 {[%clk 0:03:01]} 5. c4 {[%clk 0:02:58]}  Bc6 {[%clk 0:03:00]} 6. Nc3 {[%clk 0:02:59]}  Nf6 {[%clk 0:02:59]} 7. Nf3 {[%clk 0:02:58]}  Bxf3 {[%clk 0:02:52]} 8. Qxf3 {[%clk 0:02:59]}  Nc6 {[%clk 0:02:53]} 9. Be3 {[%clk 0:02:59]}  Bb4 {[%clk 0:02:51]} 10. O-O-O {[%clk 0:02:57]}  Bxc3 {[%clk 0:02:50]} 11. bxc3 {[%clk 0:02:57]}  Qe7 {[%clk 0:02:49]} 12. Kb2 {[%clk 0:02:57]}  O-O-O {[%clk 0:02:47]} 13. Rb1 {[%clk 0:02:52]}  e5 {[%clk 0:02:38]} 14. d5 {[%clk 0:02:48]}  Na5 {[%clk 0:02:38]} 15. Ka1 {[%clk 0:02:33]}  Nd7 {[%clk 0:02:32]} 16. g3 {[%clk 0:02:32]}  e4 {[%clk 0:02:14]} 17. Qd1 {[%clk 0:02:28]}  Nb6 {[%clk 0:02:12]} 18. Qd4 {[%clk 0:02:09]}  f5 {[%clk 0:02:08]} 19. Be2 {[%clk 0:02:02]}  Nc6 {[%clk 0:01:55]} 20. Qd1 {[%clk 0:01:59]}  Ne5 {[%clk 0:01:55]} 21. Qb3 {[%clk 0:01:59]}  Ned7 {[%clk 0:01:35]} 22. Qb5 {[%clk 0:01:50]}  a6 {[%clk 0:01:30]} 23. Qa5 {[%clk 0:01:50]}  Ne5 {[%clk 0:00:50]} 24. c5 {[%clk 0:01:23]}  Nxd5 {[%clk 0:00:41]} 25. Rxb7 {[%clk 0:01:20]}  Nxe3 {[%clk 0:00:39]} 26. fxe3 {[%clk 0:01:10]}  Kd7 {[%clk 0:00:35]} 27. Qxc7+ {[%clk 0:01:08]} 1-0


[Site "https://www.chess.com"]

[Event "Titled Tuesday Blitz October 19 2021"]
[White "Shtembuliak, Evgeny"]
[Black "Williams, Simon K"]
[WhiteFideId "14113325"]
[BlackFideId "404454"]
[WhiteElo "2504"]
[BlackElo "2468"]
[Result "1-0"]
[Round "11"]
[TimeControl "180+1"]
[Date "2021.10.19"]
[WhiteClock "0:00:09"]
[BlackClock "0:00:04"]

1. e4 {[%clk 0:03:00]}  d6 {[%clk 0:02:58]} 2. d4 {[%clk 0:03:00]}  Nf6 {[%clk 0:02:48]} 3. Nc3 {[%clk 0:02:58]}  Nbd7 {[%clk 0:02:48]} 4. f4 {[%clk 0:02:57]}  e5 {[%clk 0:02:48]} 5. Nf3 {[%clk 0:02:57]}  exd4 {[%clk 0:02:48]} 6. Qxd4 {[%clk 0:02:57]}  c6 {[%clk 0:02:48]} 7. e5 {[%clk 0:02:29]}  dxe5 {[%clk 0:02:40]} 8. fxe5 {[%clk 0:02:29]}  Bc5 {[%clk 0:02:37]} 9. Qf4 {[%clk 0:02:29]}  Qe7 {[%clk 0:02:26]} 10. Bd2 {[%clk 0:02:08]}  Bd6 {[%clk 0:01:47]} 11. O-O-O {[%clk 0:01:57]}  Nxe5 {[%clk 0:01:46]} 12. Re1 {[%clk 0:01:52]}  Nfd7 {[%clk 0:01:44]} 13. Qg3 {[%clk 0:01:27]}  O-O {[%clk 0:01:34]} 14. Bf4 {[%clk 0:01:06]}  f6 {[%clk 0:01:23]} 15. Bc4+ {[%clk 0:01:06]}  Kh8 {[%clk 0:01:22]} 16. h4 {[%clk 0:00:36]}  b5 {[%clk 0:01:18]} 17. Bb3 {[%clk 0:00:36]}  a5 {[%clk 0:01:18]} 18. a4 {[%clk 0:00:35]}  bxa4 {[%clk 0:01:15]} 19. Nxa4 {[%clk 0:00:34]}  Rb8 {[%clk 0:01:05]} 20. Kb1 {[%clk 0:00:27]}  Rb4 {[%clk 0:00:47]} 21. h5 {[%clk 0:00:21]}  Qd8 {[%clk 0:00:40]} 22. Nh4 {[%clk 0:00:19]}  Rxb3 {[%clk 0:00:27]} 23. Qxb3 {[%clk 0:00:19]}  h6 {[%clk 0:00:14]} 24. Ng6+ {[%clk 0:00:19]}  Nxg6 {[%clk 0:00:14]} 25. Bxd6 {[%clk 0:00:19]}  Nge5 {[%clk 0:00:12]} 26. Bxf8 {[%clk 0:00:19]}  Qxf8 {[%clk 0:00:12]} 27. Nc3 {[%clk 0:00:19]}  Nc5 {[%clk 0:00:11]} 28. Qb8 {[%clk 0:00:19]}  a4 {[%clk 0:00:10]} 29. Rd1 {[%clk 0:00:18]}  a3 {[%clk 0:00:09]} 30. Qc7 {[%clk 0:00:17]}  Ncd3 {[%clk 0:00:06]} 31. cxd3 {[%clk 0:00:14]}  Qb4 {[%clk 0:00:07]} 32. Rd2 {[%clk 0:00:12]}  Be6 {[%clk 0:00:05]} 33. Qd8+ {[%clk 0:00:11]}  Kh7 {[%clk 0:00:05]} 34. Qe8 {[%clk 0:00:10]}  Bf7 {[%clk 0:00:04]} 35. Qc8 {[%clk 0:00:09]} 1-0


[Site "https://www.chess.com"]

[Event "Titled Tuesday Blitz October 19 2021"]
[White "Tregubov, Pavel V."]
[Black "Timofeev, Artyom"]
[WhiteFideId "4115341"]
[BlackFideId "4140419"]
[WhiteElo "2423"]
[BlackElo "2591"]
[Result "1-0"]
[Round "11"]
[TimeControl "180+1"]
[Date "2021.10.19"]
[WhiteClock "0:01:54"]
[BlackClock "0:01:18"]

1. e4 {[%clk 0:03:00]}  e6 {[%clk 0:02:58]} 2. d4 {[%clk 0:03:00]}  d5 {[%clk 0:02:59]} 3. exd5 {[%clk 0:03:00]}  exd5 {[%clk 0:02:59]} 4. Nf3 {[%clk 0:03:01]}  Nf6 {[%clk 0:02:57]} 5. Bd3 {[%clk 0:03:01]}  Be7 {[%clk 0:02:56]} 6. O-O {[%clk 0:03:00]}  O-O {[%clk 0:02:56]} 7. h3 {[%clk 0:03:01]}  Nbd7 {[%clk 0:02:55]} 8. Re1 {[%clk 0:03:01]}  Re8 {[%clk 0:02:54]} 9. Bf4 {[%clk 0:03:00]}  Nf8 {[%clk 0:02:53]} 10. Nbd2 {[%clk 0:02:54]}  Ne6 {[%clk 0:02:52]} 11. Be5 {[%clk 0:02:52]}  b6 {[%clk 0:02:49]} 12. c3 {[%clk 0:02:51]}  c5 {[%clk 0:02:49]} 13. Qc2 {[%clk 0:02:48]}  h6 {[%clk 0:02:46]} 14. Rad1 {[%clk 0:02:39]}  Bb7 {[%clk 0:02:38]} 15. Bb5 {[%clk 0:02:35]}  Rf8 {[%clk 0:02:37]} 16. Qf5 {[%clk 0:02:22]}  g6 {[%clk 0:02:30]} 17. Qc2 {[%clk 0:02:20]}  c4 {[%clk 0:02:12]} 18. Ba4 {[%clk 0:02:14]}  a6 {[%clk 0:02:03]} 19. Bxf6 {[%clk 0:02:11]}  Bxf6 {[%clk 0:02:02]} 20. Rxe6 {[%clk 0:02:12]}  fxe6 {[%clk 0:01:55]} 21. Qxg6+ {[%clk 0:02:10]}  Bg7 {[%clk 0:01:56]} 22. Bc2 {[%clk 0:02:10]}  Rf6 {[%clk 0:01:49]} 23. Qh7+ {[%clk 0:02:09]}  Kf8 {[%clk 0:01:49]} 24. Ne5 {[%clk 0:02:09]}  Rc8 {[%clk 0:01:35]} 25. Ndf3 {[%clk 0:02:07]}  Bc6 {[%clk 0:01:35]} 26. Ng6+ {[%clk 0:02:04]}  Rxg6 {[%clk 0:01:34]} 27. Bxg6 {[%clk 0:01:58]}  Qf6 {[%clk 0:01:26]} 28. Re1 {[%clk 0:01:55]}  b5 {[%clk 0:01:21]} 29. Ne5 {[%clk 0:01:55]}  a5 {[%clk 0:01:18]} 30. Re3 {[%clk 0:01:54]} 1-0


[Site "https://www.chess.com"]

[Event "Titled Tuesday Blitz October 19 2021"]
[White "Vallejo Diaz, Javier"]
[Black "Wagner, Dennis"]
[WhiteFideId "2256398"]
[BlackFideId "24650684"]
[WhiteElo "2674"]
[BlackElo "2355"]
[Result "0-1"]
[Round "11"]
[TimeControl "180+1"]
[Date "2021.10.19"]
[WhiteClock "0:00:07"]
[BlackClock "0:00:06"]

1. e4 {[%clk 0:03:00]}  e5 {[%clk 0:02:56]} 2. Nf3 {[%clk 0:03:00]}  Nc6 {[%clk 0:02:57]} 3. Bb5 {[%clk 0:03:01]}  a6 {[%clk 0:02:57]} 4. Ba4 {[%clk 0:03:00]}  Nf6 {[%clk 0:02:58]} 5. d3 {[%clk 0:03:01]}  d6 {[%clk 0:02:56]} 6. c3 {[%clk 0:03:01]}  g6 {[%clk 0:02:56]} 7. h3 {[%clk 0:02:59]}  Bg7 {[%clk 0:02:57]} 8. O-O {[%clk 0:02:53]}  O-O {[%clk 0:02:57]} 9. Nbd2 {[%clk 0:02:54]}  Re8 {[%clk 0:02:57]} 10. Re1 {[%clk 0:02:53]}  h6 {[%clk 0:02:57]} 11. d4 {[%clk 0:02:48]}  Bd7 {[%clk 0:02:45]} 12. d5 {[%clk 0:02:47]}  Ne7 {[%clk 0:02:44]} 13. Bxd7 {[%clk 0:02:45]}  Nxd7 {[%clk 0:02:45]} 14. Nh2 {[%clk 0:02:37]}  c6 {[%clk 0:02:40]} 15. c4 {[%clk 0:02:27]}  f5 {[%clk 0:02:21]} 16. f3 {[%clk 0:02:22]}  b5 {[%clk 0:02:16]} 17. dxc6 {[%clk 0:02:12]}  Nxc6 {[%clk 0:02:15]} 18. cxb5 {[%clk 0:02:11]}  axb5 {[%clk 0:02:13]} 19. Qb3+ {[%clk 0:02:11]}  Kh7 {[%clk 0:02:07]} 20. Qxb5 {[%clk 0:02:11]}  Nd4 {[%clk 0:02:07]} 21. Qd3 {[%clk 0:01:56]}  Nc5 {[%clk 0:02:07]} 22. Qb1 {[%clk 0:01:56]}  Qd7 {[%clk 0:01:49]} 23. b3 {[%clk 0:01:39]}  d5 {[%clk 0:01:38]} 24. Bb2 {[%clk 0:01:30]}  dxe4 {[%clk 0:01:36]} 25. fxe4 {[%clk 0:01:28]}  Nc6 {[%clk 0:01:25]} 26. Nhf3 {[%clk 0:01:18]}  Nd3 {[%clk 0:01:25]} 27. Rd1 {[%clk 0:01:16]}  Red8 {[%clk 0:01:00]} 28. Bc3 {[%clk 0:00:49]}  Qa7+ {[%clk 0:00:54]} 29. Kh2 {[%clk 0:00:48]}  Qc5 {[%clk 0:00:51]} 30. Nc4 {[%clk 0:00:36]}  fxe4 {[%clk 0:00:50]} 31. Nfd2 {[%clk 0:00:36]}  Qf2 {[%clk 0:00:18]} 32. Rf1 {[%clk 0:00:31]}  Qh4 {[%clk 0:00:18]} 33. Ne3 {[%clk 0:00:24]}  Ra7 {[%clk 0:00:16]} 34. Ndc4 {[%clk 0:00:22]}  Nd4 {[%clk 0:00:14]} 35. Qd1 {[%clk 0:00:18]}  Nf4 {[%clk 0:00:13]} 36. Qg4 {[%clk 0:00:16]}  Qe7 {[%clk 0:00:11]} 37. Bxd4 {[%clk 0:00:11]}  exd4 {[%clk 0:00:11]} 38. Qxf4 {[%clk 0:00:10]}  dxe3 {[%clk 0:00:09]} 39. Qxe3 {[%clk 0:00:11]}  Rd3 {[%clk 0:00:08]} 40. Qe2 {[%clk 0:00:11]}  Rad7 {[%clk 0:00:08]} 41. Rae1 {[%clk 0:00:11]}  e3 {[%clk 0:00:08]} 42. Rf3 {[%clk 0:00:11]}  Bc3 {[%clk 0:00:07]} 43. Rxe3 {[%clk 0:00:11]}  Rxe3 {[%clk 0:00:05]} 44. Qxe3 {[%clk 0:00:11]}  Bxe1 {[%clk 0:00:06]} 45. Qf3 {[%clk 0:00:06]}  Bb4 {[%clk 0:00:05]} 46. a3 {[%clk 0:00:06]}  Bd6+ {[%clk 0:00:05]} 47. Nxd6 {[%clk 0:00:06]}  Qxd6+ {[%clk 0:00:05]} 48. Kg1 {[%clk 0:00:07]}  Qxa3 {[%clk 0:00:06]} 0-1


[Site "https://www.chess.com"]